[Event "NOR-chT Codanserien 2017-18"]
[Site "Oslo"]
[Date "2018.01.13"]
[Round "5"]
[White "Galinsky, Timofey"]
[Black "Mihajlov, Svetoslav"]
[Result "0-1"]
[ECO "D04"]
[WhiteElo "2376"]
[BlackElo "2178"]
[Annotator "NA"]
[PlyCount "50"]
[EventDate "2018.??.??"]
[EventType "team-tourn"]
[EventCountry "NOR"]
[SourceTitle "playchess.com"]
[Source "ChessBase"]
[SourceQuality "1"]
[TimeControl "40/5400+30:1800+30"]

1. d4 d5 2. Nf3 Nf6 3. e3 c5 4. dxc5 Qa5+ 5. c3 Qxc5 6. b4 Qc7 7. Bb2 Bg4 8. Nbd2 Nbd7 9. Rc1 e6 10. a3 Be7 11. c4 dxc4 12. Bxc4 Qb8 13. h3 Bxf3 14. Nxf3 b5 15. Be2 a5 16. O-O axb4 17. axb4 O-O 18. Nd4 Bxb4 19. Nc6 Qd6 20. Qb3 Bc5 21. Bf3 Nd5 22. e4 Nf4 23. e5 Qd3 24. Rc3 Ne2+ 25. Kh2 Nxc3 0-1

[Event "NOR-chT Codanserien 2017-18"]
[Site "Oslo"]
[Date "2018.01.13"]
[Round "5"]
[White "Galchenko, Matvey"]
[Black "Hole, Oystein"]
[Result "1-0"]
[ECO "B13"]
[WhiteElo "2367"]
[BlackElo "2334"]
[Annotator "NA"]
[PlyCount "81"]
[EventDate "2018.??.??"]
[EventType "team-tourn"]
[EventCountry "NOR"]
[SourceTitle "playchess.com"]
[Source "ChessBase"]
[SourceQuality "1"]
[TimeControl "40/5400+30:1800+30"]

1. e4 {[%emt 0:00:00]} c6 {[%emt 0:00:07]} 2. d4 {[%emt 0:00:00]} d5 {[%emt 0:00:10]} 3. exd5 {[%emt 0:00:03]} cxd5 {[%emt 0:00:07]} 4. Bd3 {[%emt 0:00:04]} Nc6 {[%emt 0:00:14]} 5. c3 {[%emt 0:00:07]} Qc7 {[%emt 0:00:52]} 6. Ne2 {[%emt 0:00:24]} Bg4 {[%emt 0:00:17]} 7. O-O {[%emt 0:01:36]} e6 {[%emt 0:31:05]} 8. Qe1 {[%emt 0:03:28]} Nf6 {[%emt 0:03:33]} 9. f3 {[%emt 0:18:50]} Bh5 {[%emt 0:01:00]} 10. Qh4 {[%emt 0:02:40]} Bg6 {[%emt 0:08:47]} 11. Bxg6 {[%emt 0:02:15]} fxg6 {[%emt 0:00:03]} 12. Nf4 {[%emt 0:01:43]} Kf7 {[%emt 0:00:18]} 13. Nd3 {[%emt 0:05:54]} Bd6 {[%emt 0:01:05]} 14. f4 {[%emt 0:03:12]} Rhe8 {[%emt 0:02:21]} 15. Be3 {[%emt 0:03:44]} b5 {[%emt 0:02:07]} 16. Nd2 {[%emt 0:01:47]} b4 {[%emt 0:01:11]} 17. Rac1 {[%emt 0:08:37]} Kg8 {[%emt 0:10:29]} 18. Ne5 {[%emt 0:09:07]} Rac8 {[%emt 0:14:13]} 19. c4 {[%emt 0:07:43]} dxc4 {[%emt 0:00:37]} 20. Rxc4 {[%emt 0:00:42]} Qb7 {[%emt 0:01:16]} 21. Rfc1 {[%emt 0:08:09]} Ne7 {[%emt 0:04:00]} 22. Qe1 {[%emt 0:03:03]} Rxc4 {[%emt 0:03:54]} 23. Ndxc4 {[%emt 0:00:28]} Qd5 {[%emt 0:02:29]} 24. Bf2 {[%emt 0:02:34]} a5 {[%emt 0:02:39]} 25. Nxd6 {[%emt 0:01:32]} Qxd6 {[%emt 0:00:02]} 26. Rc5 {[%emt 0:00:25]} Nfd5 {[%emt 0:01:03]} 27. Nc4 {[%emt 0:01:32]} Qd7 {[%emt 0:04:27]} 28. g3 {[%emt 0:01:47]} a4 {[%emt 0:00:24]} 29. Ne5 {[%emt 0:00:39]} Qb7 {[%emt 0:01:50]} 30. Nd3 {[%emt 0:01:35]} Nf5 {[%emt 0:01:33]} 31. Ra5 {[%emt 0:02:19]} Nf6 {[%emt 0:03:02]} 32. Rxa4 {[%emt 0:01:52]} Ng4 {[%emt 0:00:41]} 33. Rxb4 {[%emt 0:02:02]} Qd5 {[%emt 0:00:02]} 34. Qe2 {[%emt 0:03:34]} Nxf2 {[%emt 0:00:07]} 35. Qxf2 {[%emt 0:00:05]} Qxa2 {[%emt 0:00:44]} 36. Nc5 {[%emt 0:00:42]} Rd8 {[%emt 0:00:31]} 37. g4 {[%emt 0:01:00]} Qa5 {[%emt 0:01:01]} 38. Ra4 {[%emt 0:00:20]} Qb5 {[%emt 0:00:22]} 39. gxf5 {[%emt 0:00:08]} gxf5 {[%emt 0:00:15]} 40. b3 {[%emt 0:00:51]} Qe8 {[%emt 0:30:57]} 41. Qe2 {[%emt 0:31:23]} 1-0

[Event "NOR-chT Codanserien 2017-18"]
[Site "Oslo"]
[Date "2018.01.13"]
[Round "5"]
[White "Fossan, Erik"]
[Black "Devereaux, Maxim L"]
[Result "1/2-1/2"]
[ECO "B14"]
[WhiteElo "2345"]
[BlackElo "2370"]
[Annotator "NA"]
[PlyCount "47"]
[EventDate "2018.??.??"]
[EventType "team-tourn"]
[EventCountry "NOR"]
[SourceTitle "playchess.com"]
[Source "ChessBase"]
[SourceQuality "1"]
[TimeControl "40/5400+30:1800+30"]

1. e4 {[%emt 0:00:00]} c6 {[%emt 0:00:04]} 2. d4 {[%emt 0:00:00]} d5 {[%emt 0:00:06]} 3. exd5 {[%emt 0:00:06]} cxd5 {[%emt 0:00:07]} 4. c4 {[%emt 0:00:05]} Nf6 {[%emt 0:00:14]} 5. Nc3 {[%emt 0:00:04]} g6 {[%emt 0:00:22]} 6. cxd5 {[%emt 0:03:07]} Bg7 {[%emt 0:00:23]} 7. Qb3 {[%emt 0:03:24]} O-O {[%emt 0:00:25]} 8. Nf3 {[%emt 0:13:18]} Nbd7 {[%emt 0:03:21]} 9. a4 {[%emt 0:01:30]} Nb6 {[%emt 0:04:51]} 10. a5 {[%emt 0:00:28]} Nbxd5 {[%emt 0:00:53]} 11. Bc4 {[%emt 0:00:33]} Nxc3 {[%emt 0:04:27]} 12. bxc3 {[%emt 0:00:15]} Ne4 {[%emt 0:05:43]} 13. O-O {[%emt 0:05:49]} Nd6 {[%emt 0:01:02]} 14. Be2 {[%emt 0:04:21]} Be6 {[%emt 0:03:46]} 15. d5 {[%emt 0:09:45]} Bf5 {[%emt 0:02:15]} 16. Be3 {[%emt 0:21:34]} Qc7 {[%emt 0:04:53]} 17. Nd4 {[%emt 0:08:57]} Rfc8 {[%emt 0:04:09]} 18. Rfc1 {[%emt 0:07:46]} Bd7 {[%emt 0:04:26]} 19. c4 {[%emt 0:04:52]} Nf5 {[%emt 0:04:59]} 20. Nxf5 {[%emt 0:02:05]} Bxf5 {[%emt 0:00:08]} 21. Ra2 {[%emt 0:00:34]} Be5 {[%emt 0:01:17]} 22. g3 {[%emt 0:04:20]} Qd7 {[%emt 0:06:42]} 23. Bf3 {[%emt 0:01:18]} h5 {[%emt 0:02:09]} 24. h4 {[%emt 0:03:35]} 1/2-1/2

[Event "NOR-chT Codanserien 2017-18"]
[Site "Oslo"]
[Date "2018.01.13"]
[Round "5"]
[White "Risting, Eivind Olav"]
[Black "Nordquelle, Daniel"]
[Result "1-0"]
[ECO "D37"]
[WhiteElo "2309"]
[BlackElo "2196"]
[Annotator "NA"]
[PlyCount "95"]
[EventDate "2018.??.??"]
[EventType "team-tourn"]
[EventCountry "NOR"]
[SourceTitle "playchess.com"]
[Source "ChessBase"]
[SourceQuality "1"]
[TimeControl "40/5400+30:1800+30"]

1. d4 {[%emt 0:04:50]} d5 {[%emt 0:00:12]} 2. c4 {[%emt 0:00:24]} e6 {[%emt 0:00:07]} 3. Nf3 {[%emt 0:00:19]} Nf6 {[%emt 0:00:22]} 4. Nc3 {[%emt 0:00:26]} Nbd7 {[%emt 0:00:18]} 5. Bg5 {[%emt 0:00:21]} h6 {[%emt 0:06:03]} 6. Bh4 {[%emt 0:00:15]} Bb4 {[%emt 0:00:06]} 7. e3 {[%emt 0:00:11]} g5 {[%emt 0:06:51]} 8. Bg3 {[%emt 0:00:15]} Ne4 {[%emt 0:00:05]} 9. Qb3 {[%emt 0:02:57]} c5 {[%emt 0:00:24]} 10. Bd3 {[%emt 0:00:19]} Qa5 {[%emt 0:06:11]} 11. Rc1 {[%emt 0:10:24]} dxc4 {[%emt 0:19:54]} 12. Qxc4 {[%emt 0:09:52]} Nb6 {[%emt 0:05:55]} 13. Qb5+ {[%emt 0:07:44]} Qxb5 {[%emt 0:00:49]} 14. Bxb5+ {[%emt 0:00:02]} Bd7 {[%emt 0:12:56]} 15. Bxd7+ {[%emt 0:01:06]} Nxd7 {[%emt 0:00:12]} 16. Ke2 {[%emt 0:01:46]} Nxg3+ {[%emt 0:01:57]} 17. hxg3 {[%emt 0:01:39]} cxd4 {[%emt 0:00:33]} 18. Nxd4 {[%emt 0:09:35]} Ke7 {[%emt 0:09:03]} 19. a3 {[%emt 0:04:12]} Bc5 {[%emt 0:05:17]} 20. Nb3 {[%emt 0:02:05]} Bd6 {[%emt 0:01:44]} 21. f4 {[%emt 0:05:54]} Rac8 {[%emt 0:09:18]} 22. Ne4 {[%emt 0:05:03]} Bb8 {[%emt 0:01:18]} 23. Na5 {[%emt 0:02:23]} f5 {[%emt 0:02:18]} 24. Nd2 {[%emt 0:07:16]} Nc5 {[%emt 0:04:33]} 25. b4 {[%emt 0:03:24]} b6 {[%emt 0:00:04]} 26. bxc5 {[%emt 0:01:16]} bxa5 {[%emt 0:00:03]} 27. Rc4 {[%emt 0:08:28]} Kf6 {[%emt 0:01:03]} 28. Rb1 {[%emt 0:05:18]} e5 {[%emt 0:01:44]} 29. Rb5 {[%emt 0:01:37]} exf4 {[%emt 0:00:30]} 30. gxf4 {[%emt 0:00:19]} gxf4 {[%emt 0:01:15]} 31. exf4 {[%emt 0:00:02]} Rhe8+ {[%emt 0:00:18]} 32. Kf2 {[%emt 0:02:45]} Rcd8 {[%emt 0:00:50]} 33. Nf3 {[%emt 0:00:56]} Re4 {[%emt 0:00:18]} 34. Rc2 {[%emt 0:01:30]} Bxf4 {[%emt 0:01:35]} 35. Rxa5 {[%emt 0:00:59]} Re7 {[%emt 0:02:19]} 36. Ra6+ {[%emt 0:00:27]} Kg7 {[%emt 0:00:05]} 37. Nh4 {[%emt 0:01:08]} Rf7 {[%emt 0:00:44]} 38. Nf3 {[%emt 0:00:42]} Rc7 {[%emt 0:00:55]} 39. Ra4 {[%emt 0:00:38]} Bg5 {[%emt 0:00:29]} 40. Nd4 {[%emt 0:00:25]} Kf7 {[%emt 0:31:17]} 41. Nb5 {[%emt 0:04:31]} Rcc8 {[%emt 0:00:00]} 42. Rxa7+ {[%emt 0:15:43]} Ke6 {[%emt 0:00:00]} 43. c6 {[%emt 0:02:40]} Rd2+ {[%emt 0:00:00]} 44. Rxd2 {[%emt 0:00:05]} Bxd2 {[%emt 0:00:00]} 45. Rb7 {[%emt 0:06:05]} Kd5 {[%emt 0:00:00]} 46. Na7 {[%emt 0:01:31]} Re8 {[%emt 0:00:00]} 47. Rd7+ {[%emt 0:00:18]} Kc5 {[%emt 0:00:00]} 48. Rxd2 {[%emt 0:00:07] Kd5} 1-0

[Event "NOR-chT Codanserien 2017-18"]
[Site "Oslo"]
[Date "2018.01.13"]
[Round "5"]
[White "Hobber, Anders"]
[Black "Mikalsen, Erlend"]
[Result "1/2-1/2"]
[ECO "A47"]
[WhiteElo "2301"]
[BlackElo "2307"]
[Annotator "NA"]
[PlyCount "95"]
[EventDate "2018.??.??"]
[EventType "team-tourn"]
[EventCountry "NOR"]
[SourceTitle "playchess.com"]
[Source "ChessBase"]
[SourceQuality "1"]
[TimeControl "40/5400+30:1800+30"]

1. d4 {[%emt 0:00:18]} Nf6 {[%emt 0:00:10]} 2. Nf3 {[%emt 0:00:34]} b6 {[%emt 0:00:04]} 3. Bf4 {[%emt 0:02:59]} Bb7 {[%emt 0:00:09]} 4. e3 {[%emt 0:00:13]} Nh5 {[%emt 0:00:06]} 5. Bg5 {[%emt 0:01:53]} h6 {[%emt 0:00:05]} 6. Bh4 {[%emt 0:00:07]} g5 {[%emt 0:00:03]} 7. Bg3 {[%emt 0:03:47]} Nxg3 {[%emt 0:02:46]} 8. hxg3 {[%emt 0:02:25]} Bg7 {[%emt 0:01:24]} 9. Nbd2 {[%emt 0:05:06]} d6 {[%emt 0:03:08]} 10. Bd3 {[%emt 0:02:10]} Nd7 {[%emt 0:01:14]} 11. Qe2 {[%emt 0:01:34]} e6 {[%emt 0:00:57]} 12. O-O-O {[%emt 0:01:27]} Qe7 {[%emt 0:01:28]} 13. Ba6 {[%emt 0:04:56]} O-O-O {[%emt 0:01:29]} 14. Nb3 {[%emt 0:10:10]} Nb8 {[%emt 0:03:01]} 15. Bxb7+ {[%emt 0:03:05]} Kxb7 {[%emt 0:00:06]} 16. e4 {[%emt 0:04:48]} Qd7 {[%emt 0:04:22]} 17. Kb1 {[%emt 0:05:30]} Qa4 {[%emt 0:04:04]} 18. c3 {[%emt 0:04:01]} Rhe8 {[%emt 0:10:09]} 19. Qc2 {[%emt 0:03:16]} Ka8 {[%emt 0:05:56]} 20. g4 {[%emt 0:03:07]} c5 {[%emt 0:01:21]} 21. Rhe1 {[%emt 0:04:29]} cxd4 {[%emt 0:04:14]} 22. Nbxd4 {[%emt 0:00:19]} Qxc2+ {[%emt 0:00:37]} 23. Kxc2 {[%emt 0:00:05]} Kb7 {[%emt 0:00:15]} 24. Ne2 {[%emt 0:10:27]} Nc6 {[%emt 0:04:08]} 25. Ng3 {[%emt 0:00:46]} b5 {[%emt 0:00:30]} 26. Rd3 {[%emt 0:02:47]} b4 {[%emt 0:08:21]} 27. c4 {[%emt 0:01:12]} Na5 {[%emt 0:00:27]} 28. b3 {[%emt 0:01:04]} Kc7 {[%emt 0:01:29]} 29. Nd4 {[%emt 0:03:00]} Nb7 {[%emt 0:02:04]} 30. Red1 {[%emt 0:03:56]} a6 {[%emt 0:00:19]} 31. Rf3 {[%emt 0:01:31]} Re7 {[%emt 0:03:29]} 32. Ndf5 {[%emt 0:04:35]} exf5 {[%emt 0:00:07]} 33. Nxf5 {[%emt 0:00:07]} Rxe4 {[%emt 0:08:22]} 34. Nxg7 {[%emt 0:00:05]} Rxg4 {[%emt 0:04:13]} 35. Rxf7+ {[%emt 0:00:42]} Kc6 {[%emt 0:00:05]} 36. g3 {[%emt 0:01:08]} Re4 {[%emt 0:03:40]} 37. Nf5 {[%emt 0:01:14]} Rd7 {[%emt 0:04:35]} 38. Rf6 {[%emt 0:01:30]} h5 {[%emt 0:01:25]} 39. Rd2 {[%emt 0:01:55]} Re5 {[%emt 0:03:18]} 40. Nd4+ {[%emt 0:03:22]} Kc7 {[%emt 0:31:35]} 41. Nf3 {[%emt 0:08:50]} Ra5 {[%emt 0:00:00]} 42. Kb2 {[%emt 0:02:46]} Nc5 {[%emt 0:00:00]} 43. Nxg5 {[%emt 0:02:31]} Na4+ {[%emt 0:00:00]} 44. bxa4 {[%emt 0:00:05]} Rxg5 {[%emt 0:00:00]} 45. Kb3 {[%emt 0:02:01]} a5 {[%emt 0:00:00]} 46. Rh6 {[%emt 0:04:54]} Rf7 {[%emt 0:00:00]} 47. Rhxd6 {[%emt 0:03:17]} Rxf2 {[%emt 0:00:00]} 48. Rd7+ {[%emt 0:01:29]} 1/2-1/2

[Event "NOR-chT Codanserien 2017-18"]
[Site "Oslo"]
[Date "2018.01.13"]
[Round "5"]
[White "Tallaksen, Levi Andre"]
[Black "Borresen, Georg S"]
[Result "1/2-1/2"]
[ECO "E76"]
[WhiteElo "2296"]
[BlackElo "2263"]
[Annotator "NA"]
[PlyCount "78"]
[EventDate "2018.??.??"]
[EventType "team-tourn"]
[EventCountry "NOR"]
[SourceTitle "playchess.com"]
[Source "ChessBase"]
[SourceQuality "1"]
[TimeControl "40/5400+30:1800+30"]

1. d4 {[%emt 0:00:00]} Nf6 {[%emt 0:00:04]} 2. c4 {[%emt 0:00:00]} g6 {[%emt 0:00:10]} 3. Nc3 {[%emt 0:00:00]} Bg7 {[%emt 0:00:04]} 4. e4 {[%emt 0:00:13]} d6 {[%emt 0:00:03]} 5. f4 {[%emt 0:00:14]} O-O {[%emt 0:01:03]} 6. Nf3 {[%emt 0:00:15]} Nbd7 {[%emt 0:03:55]} 7. Bd3 {[%emt 0:04:09]} e5 {[%emt 0:01:16]} 8. fxe5 {[%emt 0:00:33]} dxe5 {[%emt 0:00:04]} 9. d5 {[%emt 0:00:08]} Qe7 {[%emt 0:02:24]} 10. O-O {[%emt 0:11:13]} Ng4 {[%emt 0:16:24]} 11. Qe1 {[%emt 0:05:41]} Bh6 {[%emt 0:03:51]} 12. h3 {[%emt 0:14:33]} Bxc1 {[%emt 0:00:16]} 13. Rxc1 {[%emt 0:00:38]} Nh6 {[%emt 0:10:24]} 14. Qe3 {[%emt 0:01:38]} Kg7 {[%emt 0:02:07]} 15. Nb5 {[%emt 0:01:25]} Nc5 {[%emt 0:28:07]} 16. b4 {[%emt 0:18:02]} Nxd3 {[%emt 0:02:11]} 17. Qxd3 {[%emt 0:00:06]} a6 {[%emt 0:02:04]} 18. d6 {[%emt 0:01:05]} cxd6 {[%emt 0:00:38]} 19. Nxd6 {[%emt 0:01:09]} f6 {[%emt 0:00:52]} 20. c5 {[%emt 0:06:01]} Be6 {[%emt 0:00:20]} 21. a4 {[%emt 0:00:26]} Rfd8 {[%emt 0:04:42]} 22. Rfd1 {[%emt 0:00:51]} Nf7 {[%emt 0:00:47]} 23. Rd2 {[%emt 0:00:49]} Rd7 {[%emt 0:01:14]} 24. Rcd1 {[%emt 0:06:11]} Rad8 {[%emt 0:00:08]} 25. a5 {[%emt 0:00:16]} Nxd6 {[%emt 0:05:48]} 26. cxd6 {[%emt 0:00:04]} Rxd6 {[%emt 0:00:50]} 27. Qxd6 {[%emt 0:00:06]} Rxd6 {[%emt 0:00:02]} 28. Rxd6 {[%emt 0:00:10]} Kh6 {[%emt 0:00:38]} 29. Nh2 {[%emt 0:07:13]} Kg5 {[%emt 0:01:19]} 30. Rb6 {[%emt 0:04:21]} Bc4 {[%emt 0:02:03]} 31. Ng4 {[%emt 0:01:09]} Be2 {[%emt 0:01:30]} 32. Rdd6 {[%emt 0:00:05]} Bxg4 {[%emt 0:02:31]} 33. hxg4 {[%emt 0:00:05]} Kxg4 {[%emt 0:00:53]} 34. Rxf6 {[%emt 0:00:06]} Qc7 {[%emt 0:01:06]} 35. Rf1 {[%emt 0:04:14]} Qc3 {[%emt 0:02:57]} 36. Rxb7 {[%emt 0:01:27]} Qe3+ {[%emt 0:00:11]} 37. Kh1 {[%emt 0:00:09]} Qh6+ {[%emt 0:00:10]} 38. Kg1 {[%emt 0:00:04]} Qe3+ {[%emt 0:00:02]} 39. Kh1 {[%emt 0:00:06]} Qh6+ 1/2-1/2

[Event "NOR-chT Codanserien 2017-18"]
[Site "Oslo"]
[Date "2018.01.13"]
[Round "5"]
[White "Andersen, Lars Even"]
[Black "Fossan, Petter"]
[Result "1/2-1/2"]
[ECO "A04"]
[WhiteElo "2293"]
[BlackElo "2323"]
[Annotator "NA"]
[PlyCount "75"]
[EventDate "2018.??.??"]
[EventType "team-tourn"]
[EventCountry "NOR"]
[SourceTitle "playchess.com"]
[Source "ChessBase"]
[SourceQuality "1"]
[TimeControl "40/5400+30:1800+30"]

1. Nf3 {[%emt 0:01:18]} c5 {[%emt 0:01:49]} 2. g3 {[%emt 0:04:17]} g6 {[%emt 0:00:36]} 3. Bg2 {[%emt 0:00:37]} Bg7 {[%emt 0:00:05]} 4. c4 {[%emt 0:00:38]} Nf6 {[%emt 0:00:51]} 5. Nc3 {[%emt 0:00:37]} O-O {[%emt 0:00:07]} 6. d4 {[%emt 0:03:00]} cxd4 {[%emt 0:00:04]} 7. Nxd4 {[%emt 0:00:09]} Nc6 {[%emt 0:00:13]} 8. e3 {[%emt 0:03:00]} d6 {[%emt 0:02:47]} 9. O-O {[%emt 0:02:27]} Ng4 {[%emt 0:06:01]} 10. b3 {[%emt 0:08:07]} Bd7 {[%emt 0:09:37]} 11. Bb2 {[%emt 0:05:25]} Nxd4 {[%emt 0:00:50]} 12. exd4 {[%emt 0:00:11]} Rb8 {[%emt 0:00:09]} 13. a4 {[%emt 0:09:03]} Nh6 {[%emt 0:03:59]} 14. Re1 {[%emt 0:08:58]} Nf5 {[%emt 0:00:47]} 15. Nd5 {[%emt 0:00:29]} Re8 {[%emt 0:02:45]} 16. Ra2 {[%emt 0:06:27]} Bc6 {[%emt 0:04:56]} 17. Ne3 {[%emt 0:13:50]} Nxe3 {[%emt 0:16:29]} 18. Rxe3 {[%emt 0:01:25]} Bxg2 {[%emt 0:00:10]} 19. Kxg2 {[%emt 0:00:06]} a6 {[%emt 0:03:33]} 20. a5 {[%emt 0:04:33]} d5 {[%emt 0:02:29]} 21. c5 {[%emt 0:00:51]} Qd7 {[%emt 0:03:54]} 22. Qd3 {[%emt 0:02:57]} Qc6 {[%emt 0:08:39]} 23. Kg1 {[%emt 0:01:34]} f6 {[%emt 0:04:37]} 24. Qe2 {[%emt 0:06:16]} e6 {[%emt 0:03:05]} 25. b4 {[%emt 0:07:05]} Re7 {[%emt 0:00:29]} 26. Ra1 {[%emt 0:01:12]} Rbe8 {[%emt 0:02:32]} 27. f4 {[%emt 0:03:01]} Kf7 {[%emt 0:06:59]} 28. h4 {[%emt 0:00:59]} h5 {[%emt 0:01:48]} 29. Kh2 {[%emt 0:00:16]} Rh8 {[%emt 0:04:35]} 30. Bc3 {[%emt 0:00:50]} Rhe8 {[%emt 0:02:48]} 31. Rg1 {[%emt 0:00:29]} Qb5 {[%emt 0:00:38]} 32. Qxb5 {[%emt 0:01:24]} axb5 {[%emt 0:00:07]} 33. Ra1 {[%emt 0:01:37]} Ra8 {[%emt 0:00:23]} 34. Bb2 {[%emt 0:00:19]} Ra6 {[%emt 0:01:03]} 35. Kh3 {[%emt 0:00:55]} Re8 {[%emt 0:01:38]} 36. Rg1 {[%emt 0:00:50]} Rh8 {[%emt 0:00:32]} 37. Re2 {[%emt 0:00:21]} f5 {[%emt 0:03:46]} 38. Rge1 {[%emt 0:00:34]} 1/2-1/2

[Event "NOR-chT Codanserien 2017-18"]
[Site "Oslo"]
[Date "2018.01.13"]
[Round "5"]
[White "Flermoen, Peter"]
[Black "Skrondal, Inge Sandstad"]
[Result "1/2-1/2"]
[ECO "B24"]
[WhiteElo "2259"]
[BlackElo "2239"]
[Annotator "NA"]
[PlyCount "30"]
[EventDate "2018.??.??"]
[EventType "team-tourn"]
[EventCountry "NOR"]
[SourceTitle "playchess.com"]
[Source "ChessBase"]
[SourceQuality "1"]
[TimeControl "40/5400+30:1800+30"]

1. e4 {[%emt 0:00:00]} c5 {[%emt 0:00:12]} 2. Nc3 {[%emt 0:00:00]} Nc6 {[%emt 0:00:03]} 3. Nf3 {[%emt 0:00:00]} g6 {[%emt 0:01:20]} 4. g3 {[%emt 0:00:00]} Bg7 {[%emt 0:00:16]} 5. Bg2 {[%emt 0:00:00]} d6 {[%emt 0:01:46]} 6. O-O {[%emt 0:00:06]} Nf6 {[%emt 0:01:48]} 7. h3 {[%emt 0:00:41]} Rb8 {[%emt 0:03:22]} 8. Re1 {[%emt 0:07:27]} e5 {[%emt 0:01:23]} 9. Rb1 {[%emt 0:00:57]} O-O {[%emt 0:08:34]} 10. d3 {[%emt 0:00:13]} b6 {[%emt 0:06:47]} 11. Be3 {[%emt 0:00:31]} Bb7 {[%emt 0:04:27]} 12. g4 {[%emt 0:01:55]} d5 {[%emt 0:11:35]} 13. g5 {[%emt 0:02:35]} Nxe4 {[%emt 0:00:11]} 14. Nxe4 {[%emt 0:17:35]} dxe4 {[%emt 0:04:58]} 15. dxe4 {[%emt 0:02:07]} Qxd1 {[%emt 0:11:42]} 1/2-1/2

[Event "NOR-chT Codanserien 2017-18"]
[Site "Oslo"]
[Date "2018.01.13"]
[Round "5"]
[White "Gudbrandsen, Gustav"]
[Black "Nielsen, Andre"]
[Result "1-0"]
[ECO "C50"]
[WhiteElo "2235"]
[BlackElo "2152"]
[Annotator "NA"]
[PlyCount "109"]
[EventDate "2018.??.??"]
[EventType "team-tourn"]
[EventCountry "NOR"]
[SourceTitle "playchess.com"]
[Source "ChessBase"]
[SourceQuality "1"]
[TimeControl "40/5400+30:1800+30"]

1. e4 {[%emt 0:00:00]} e5 {[%emt 0:00:13]} 2. Nf3 {[%emt 0:00:25]} Nc6 {[%emt 0:00:13]} 3. Bc4 {[%emt 0:00:46]} Nf6 {[%emt 0:00:53]} 4. d3 {[%emt 0:00:30]} Bc5 {[%emt 0:00:46]} 5. O-O {[%emt 0:00:27]} d6 {[%emt 0:02:09]} 6. Be3 {[%emt 0:00:46]} Bb6 {[%emt 0:02:33]} 7. Bxb6 {[%emt 0:07:50]} axb6 {[%emt 0:00:18]} 8. c3 {[%emt 0:04:18]} O-O {[%emt 0:02:41]} 9. Nbd2 {[%emt 0:02:39]} Ne7 {[%emt 0:11:19]} 10. d4 {[%emt 0:06:35]} Ng6 {[%emt 0:02:19]} 11. Re1 {[%emt 0:03:54]} Qe7 {[%emt 0:15:36]} 12. b4 {[%emt 0:03:51]} Nf4 {[%emt 0:04:23]} 13. Nf1 {[%emt 0:04:59]} g6 {[%emt 0:09:18]} 14. a4 {[%emt 0:06:05]} h5 {[%emt 0:08:31]} 15. Ng3 {[%emt 0:09:29]} Bg4 {[%emt 0:02:34]} 16. h3 {[%emt 0:07:15]} Bd7 {[%emt 0:10:24]} 17. Ne2 {[%emt 0:06:13]} Nxe2+ {[%emt 0:04:40]} 18. Rxe2 {[%emt 0:00:34]} Rad8 {[%emt 0:01:50]} 19. Qc1 {[%emt 0:05:56]} Nh7 {[%emt 0:03:58]} 20. a5 {[%emt 0:05:12]} b5 {[%emt 0:01:11]} 21. Bd5 {[%emt 0:00:17]} c6 {[%emt 0:00:46]} 22. Bb3 {[%emt 0:00:11]} Qf6 {[%emt 0:02:38]} 23. dxe5 {[%emt 0:01:43]} dxe5 {[%emt 0:00:14]} 24. Qe3 {[%emt 0:00:35]} g5 {[%emt 0:01:31]} 25. Qc5 {[%emt 0:07:59]} Rfe8 {[%emt 0:02:30]} 26. Rd2 {[%emt 0:01:36]} Nf8 {[%emt 0:04:17]} 27. Rad1 {[%emt 0:03:58]} g4 {[%emt 0:01:36]} 28. hxg4 {[%emt 0:00:38]} hxg4 {[%emt 0:00:23]} 29. Nh2 {[%emt 0:00:09]} Be6 {[%emt 0:03:33]} 30. Bxe6 {[%emt 0:05:32]} Nxe6 {[%emt 0:00:56]} 31. Rxd8 {[%emt 0:00:27]} Rxd8 {[%emt 0:00:11]} 32. Rxd8+ {[%emt 0:00:15]} Qxd8 {[%emt 0:01:11]} 33. Qxe5 {[%emt 0:00:28]} Qd2 {[%emt 0:00:38]} 34. g3 {[%emt 0:02:50]} Qg5 {[%emt 0:00:32]} 35. Qb8+ {[%emt 0:01:00]} Kg7 {[%emt 0:00:37]} 36. Kg2 {[%emt 0:00:32]} Qg6 {[%emt 0:00:24]} 37. Qe5+ {[%emt 0:00:22]} Kh7 {[%emt 0:00:30]} 38. Qf5 {[%emt 0:00:29]} Qxf5 {[%emt 0:00:40]} 39. exf5 {[%emt 0:00:11]} Ng5 {[%emt 0:00:31]} 40. Nxg4 {[%emt 0:01:22]} Ne4 {[%emt 0:30:16]} 41. Ne5 {[%emt 0:31:18]} Nxc3 {[%emt 0:00:00]} 42. a6 {[%emt 0:00:00]} bxa6 {[%emt 0:00:00]} 43. Nxc6 {[%emt 0:00:00]} Kg7 {[%emt 0:00:00]} 44. g4 {[%emt 0:00:00]} Kf6 {[%emt 0:00:00]} 45. f4 {[%emt 0:00:00]} Nd5 {[%emt 0:00:00]} 46. Kf3 {[%emt 0:00:00]} Nc3 {[%emt 0:00:00]} 47. Nb8 {[%emt 0:00:00]} a5 {[%emt 0:00:00]} 48. bxa5 {[%emt 0:00:00]} b4 {[%emt 0:00:00]} 49. Nd7+ {[%emt 0:00:00]} Ke7 {[%emt 0:00:00]} 50. Nc5 {[%emt 0:00:00]} Nd5 {[%emt 0:00:29]} 51. a6 {[%emt 0:00:00]} Kd6 {[%emt 0:01:00]} 52. a7 {[%emt 0:00:00]} Nc7 {[%emt 0:02:27]} 53. Na6 {[%emt 0:00:00]} b3 {[%emt 0:00:12]} 54. Nxc7 {[%emt 0:00:00]} b2 {[%emt 0:00:17]} 55. Nb5+ {[%emt 0:00:00]} 1-0